fUSD/lending_fUSD_20240104
["ID","MTS","AMOUNT","RATE_DAILY","PERIOD"]
[310158223,1704384695949,-500.0,0.00034794,2]
[310158224,1704384695958,-500.0,0.00034794,2]
[310158225,1704384695968,-591.92,0.00034794,2]
[310158226,1704384695977,-1538.71,0.00034794,2]
[310158227,1704384695987,-500.0,0.00034794,2]
[310158228,1704384695997,-1209.37,0.00034794,2]
[310158229,1704384696006,-500.0,0.00034794,2]
[310158230,1704384696016,-1769.02,0.00034794,2]
[310158231,1704384696026,-500.0,0.00034794,2]
[310158232,1704384696036,-500.0,0.00034794,2]
[310158233,1704384696045,-1608.02,0.00034794,2]
[310158234,1704384696055,-500.0,0.00034794,2]
[310158235,1704384696065,-500.0,0.00034794,2]
[310158236,1704384696074,-866.14,0.00034794,2]
[310158237,1704384696084,-3238.36,0.00034794,2]
[310158238,1704384696093,-597.7,0.00034794,2]
[310158239,1704384696105,-1312.71,0.00034794,2]
[310158240,1704384696115,-500.0,0.00034794,2]
[310158241,1704384696124,-758.49,0.00034794,2]
[310158242,1704384696134,-861.13,0.00034794,2]
[310158243,1704384696144,-554.04,0.00034794,2]
[310158244,1704384696154,-500.0,0.00034794,2]
[310158245,1704384696164,-500.0,0.00034794,2]
[310158246,1704384696173,-910.85,0.00034794,2]
[310158247,1704384696183,-647.07,0.00034794,2]
[310158248,1704384696192,-596.22,0.00034794,2]
[310158249,1704384696203,-840.62,0.00034794,2]
[310158250,1704384696213,-552.48,0.00034794,2]
[310158251,1704384696223,-859.39,0.00034794,2]
[310158252,1704384696233,-498.02523839,0.00034794,2]
[310158253,1704384696243,-1225.89,0.00034794,2]
[310158254,1704384696253,-957.37,0.00034794,2]
[310158255,1704384696263,-765.17,0.00034794,2]
[310158256,1704384696273,-562.44,0.00034794,2]
[310158257,1704384696283,-659.69,0.00034794,2]
[310158258,1704384696293,-500.0,0.00034794,2]
[310158259,1704384696303,-500.0,0.00034794,2]
[310158260,1704384696313,-1445.4,0.00034794,2]
[310158261,1704384696323,-704.58,0.00034794,2]
[310158262,1704384696333,-616.78,0.00034794,2]
[310158263,1704384696342,-683.51,0.00034794,2]
[310158264,1704384696353,-661.23,0.00034794,2]
[310158265,1704384696368,-529.83,0.00034794,2]
[310158266,1704384696378,-500.0,0.00034794,2]
[310158267,1704384696388,-500.0,0.00034794,2]
[310158268,1704384696397,-782.54,0.00034794,2]
[310158269,1704384696407,-588.15,0.00034794,2]
[310158270,1704384696417,-1195.11,0.00034794,2]
[310158271,1704384696427,-674.54,0.00034794,2]
[310158272,1704384696437,-1310.86,0.00034794,2]
[310158273,1704384696446,-831.54,0.00034794,2]
[310158274,1704384696456,-500.0,0.00034794,2]
[310158275,1704384696467,-500.0,0.00034794,2]
[310158276,1704384696477,-1025.23,0.00034794,2]
[310158277,1704384696486,-1101.26,0.00034794,2]
[310158278,1704384696496,-785.28,0.00034794,2]
[310158279,1704384696505,-705.23,0.00034794,2]
[310158280,1704384696515,-1065.41,0.00034794,2]
[310158281,1704384696524,-500.0,0.00034794,2]
[310158282,1704384696534,-500.0,0.00034794,2]
[310158283,1704384696544,-1054.98,0.00034794,2]
[310158284,1704384696554,-995.7,0.00034794,2]
[310158285,1704384696563,-744.22,0.00034794,2]
[310158286,1704384696573,-500.0,0.00034794,2]
[310158287,1704384696583,-500.0,0.00034794,2]
[310158288,1704384696593,-1427.22,0.00034794,2]
[310158289,1704384696605,-1238.86,0.00034794,2]
[310158290,1704384696614,-742.23,0.00034794,2]
[310158291,1704384696624,-887.92,0.00034794,2]
[310158292,1704384696633,-500.0,0.00034794,2]
[310158293,1704384696642,-666.3,0.00034794,2]
[310158294,1704384696651,-907.32,0.00034794,2]
[310158295,1704384696661,-500.0,0.00034794,2]
[310158296,1704384696670,-702.86,0.00034794,2]
[310158297,1704384696679,-500.0,0.00034794,2]
[310158298,1704384696688,-500.0,0.00034794,2]
[310158299,1704384696697,-500.0,0.00034794,2]
[310158300,1704384696708,-945.74,0.00034794,2]
[310158301,1704384696717,-920.91,0.00034794,2]
[310158302,1704384696726,-500.0,0.00034794,2]
[310158303,1704384696736,-1400.63,0.00034794,2]
[310158304,1704384696919,-672.89,0.00034794,2]
[310158305,1704384696930,-535.81,0.00034794,2]
[310158306,1704384696939,-500.0,0.00034794,2]
[310158307,1704384696949,-500.0,0.00034794,2]
[310158308,1704384696958,-500.0,0.00034794,2]
[310158309,1704384696968,-500.0,0.00034794,2]
[310158310,1704384696977,-750.79,0.00034794,2]
[310158311,1704384696986,-1057.28,0.00034794,2]
[310158312,1704384696995,-523.13,0.00034794,2]
[310158313,1704384697004,-1335.29,0.00034794,2]
[310158314,1704384697014,-500.0,0.00034794,2]
[310158315,1704384697023,-878.66,0.00034794,2]
[310158316,1704384697032,-500.0,0.00034794,2]
[310158317,1704384697042,-1605.48,0.00034794,2]
[310158318,1704384697051,-500.0,0.00034794,2]
[310158319,1704384697060,-500.0,0.00034794,2]
[310158320,1704384697070,-500.0,0.00034794,2]
[310158321,1704384697080,-500.0,0.00034794,2]
[310158322,1704384697089,-1736.22,0.00034794,2]
[310158323,1704384697100,-500.0,0.00034794,2]
[310158324,1704384697110,-847.37,0.00034794,2]
[310158325,1704384697119,-762.22,0.00034794,2]
[310158326,1704384697129,-500.0,0.00034794,2]
[310158327,1704384697139,-668.67,0.00034794,2]
[310158328,1704384697149,-1025.7,0.00034794,2]
[310158329,1704384697158,-500.0,0.00034794,2]
[310158330,1704384697167,-530.17,0.00034794,2]
[310158331,1704384697177,-500.0,0.00034794,2]
[310158332,1704384697186,-500.0,0.00034794,2]
[310158333,1704384697195,-500.0,0.00034794,2]
[310158334,1704384697205,-790.72,0.00034794,2]
[310158335,1704384697214,-959.6,0.00034794,2]
[310158336,1704384697224,-500.0,0.00034794,2]
[310158337,1704384697233,-516.03,0.00034794,2]
[310158338,1704384697243,-873.69,0.00034794,2]
[310158339,1704384697252,-506.97,0.00034794,2]
[310158340,1704384697261,-500.0,0.00034794,2]
[310158341,1704384697271,-500.0,0.00034794,2]
[310158342,1704384697281,-1032.21,0.00034794,2]
[310158343,1704384697290,-529.99,0.00034794,2]
[310158344,1704384697299,-500.0,0.00034794,2]
[310158345,1704384697309,-917.61,0.00034794,2]
[310158346,1704384697318,-500.0,0.00034794,2]
[310158347,1704384697328,-500.0,0.00034794,2]
[310158348,1704384697337,-500.0,0.00034794,2]
[310158349,1704384697346,-610.7,0.00034794,2]
[310158350,1704384697358,-1220.03,0.00034794,2]
[310158351,1704384697367,-1169.06,0.00034794,2]
[310158352,1704384697376,-534.36,0.00034794,2]
[310158353,1704384697389,-500.0,0.00034794,2]
[310158354,1704384697399,-631.5,0.00034794,2]
[310158355,1704384697408,-1507.11,0.00034794,2]
[310158356,1704384697418,-680.74,0.00034794,2]
[310158357,1704384697427,-500.0,0.00034794,2]
[310158358,1704384697437,-500.0,0.00034794,2]
[310158359,1704384697446,-2169.33,0.00034794,2]
[310158360,1704384697456,-2030.09,0.00034794,2]
[310158361,1704384697466,-500.0,0.00034794,2]
[310158362,1704384697476,-500.0,0.00034794,2]
[310158363,1704384697485,-1479.9,0.00034794,2]
[310158364,1704384697496,-500.0,0.00034794,2]
[310158365,1704384697505,-500.0,0.00034794,2]
[310158366,1704384697515,-500.0,0.00034794,2]
[310158367,1704384697525,-500.0,0.00034794,2]
[310158368,1704384697534,-822.67,0.00034794,2]
[310158369,1704384697544,-1227.94,0.00034794,2]
[310158370,1704384697553,-3860.65,0.00034794,2]
[310158371,1704384697562,-1694.53,0.00034794,2]
[310158372,1704384697571,-500.0,0.00034794,2]
[310158373,1704384697581,-654.78,0.00034794,2]
[310158374,1704384697590,-675.26,0.00034794,2]
[310158375,1704384697601,-1024.69,0.00034794,2]
[310158376,1704384697611,-2166.67,0.00034794,2]
[310158377,1704384697621,-500.0,0.00034794,2]
[310158378,1704384697630,-500.0,0.00034794,2]
[310158379,1704384697640,-500.0,0.00034794,2]
[310158380,1704384697650,-644.95,0.00034794,2]
[310158381,1704384697660,-6237.21,0.00034794,2]
[310158382,1704384697669,-2236.13,0.00034794,2]
[310158383,1704384697678,-500.0,0.00034794,2]
[310158384,1704384697687,-500.0,0.00034794,2]
[310158385,1704384697697,-1565.67,0.00034794,2]
[310158386,1704384697706,-748.67,0.00034794,2]
[310158387,1704384697715,-1806.87,0.00034794,2]
[310158388,1704384697724,-500.0,0.00034794,2]
[310158389,1704384697734,-500.0,0.00034794,2]
[310158390,1704384697744,-1248.14,0.00034794,2]
[310158391,1704384697753,-7320.87,0.00034794,2]
[310158392,1704384697762,-500.0,0.00034794,2]
[310158393,1704384697772,-500.0,0.00034794,2]
[310158394,1704384697781,-500.0,0.00034794,2]
[310158395,1704384697791,-596.18,0.00034794,2]
[310158396,1704384697805,-712.06,0.00034794,2]
[310158397,1704384697814,-583.13,0.00034794,2]
[310158398,1704384697824,-1160.21,0.00034794,2]
[310158399,1704384697833,-1547.86,0.00034794,2]
[310158400,1704384697842,-1053.44,0.00034794,2]
[310158401,1704384697852,-11509.81,0.00034794,2]
[310158402,1704384697861,-500.0,0.00034794,2]
[310158403,1704384697870,-4480.87,0.00034794,2]
[310158404,1704384697879,-500.0,0.00034794,2]
[310158405,1704384697889,-983.01,0.00034794,2]
[310158406,1704384697898,-500.0,0.00034794,2]
[310158407,1704384697908,-22757.31,0.00034794,2]
[310158408,1704384697917,-1810.3,0.00034794,2]
[310158409,1704384697927,-500.0,0.00034794,2]
[310158410,1704384697936,-500.0,0.00034794,2]
[310158411,1704384697945,-10482.29,0.00034794,2]
[310158412,1704384697954,-1146.84,0.00034794,2]
[310158413,1704384697963,-635.8632792,0.00034794,2]
[310158414,1704384697972,-682.62,0.00034794,2]
[310158415,1704384697982,-646.84,0.00034794,2]
[310158416,1704384697991,-500.0,0.00034794,2]
[310158417,1704384698001,-2236.54,0.00034794,2]
[310158418,1704384698010,-5241.12,0.00034794,2]
[310158419,1704384698019,-3000.04,0.00034794,2]
[310158420,1704384698028,-562.73,0.00034794,2]
[310158421,1704384698038,-1267.2,0.00034794,2]
[310158422,1704384698047,-570.19,0.00034794,2]
[310158423,1704384698057,-1044.59,0.00034794,2]
[310158424,1704384698066,-1733.36,0.00034794,2]
[310158425,1704384698076,-506.99,0.00034794,2]
[310158426,1704384698085,-500.0,0.00034794,2]
[310158427,1704384698094,-2344.65,0.00034794,2]
[310158428,1704384698106,-500.0,0.00034794,2]
[310158429,1704384698115,-500.0,0.00034794,2]
[310158430,1704384698125,-500.0,0.00034794,2]
[310158431,1704384698134,-1148.98,0.00034794,2]
[310158432,1704384698144,-3957.27,0.00034794,2]
[310158433,1704384698152,-500.0,0.00034794,2]
[310158434,1704384698162,-666.95,0.00034794,2]
[310158435,1704384698171,-4906.37,0.00034794,2]
[310158436,1704384698181,-781.77,0.00034794,2]
[310158437,1704384698190,-3313.6,0.00034794,2]
[310158438,1704384698199,-500.0,0.00034794,2]
[310158439,1704384698209,-500.0,0.00034794,2]
[310158440,1704384698218,-500.0,0.00034794,2]
[310158441,1704384698228,-150.0,0.00034794,2]
[310158442,1704384698237,-1046.86,0.00034794,2]
[310158443,1704384698247,-521.63,0.00034794,2]
[310158444,1704384698256,-500.0,0.00034794,2]
[310158445,1704384698266,-3795.31,0.00034794,2]
[310158446,1704384698275,-941.09,0.00034794,2]
[310158447,1704384698285,-744.5,0.00034794,2]
[310158448,1704384698295,-680.9,0.00034794,2]
[310158449,1704384698304,-40011.89,0.00034794,2]
[310158450,1704384698315,-4440.8,0.00034794,2]
[310158451,1704384698325,-3124.54,0.00034794,2]
[310158452,1704384698335,-575.77,0.00034794,2]
[310158453,1704384698345,-584.42736562,0.00034794,2]
[310158454,1704384698357,-529.49,0.00034794,2]
[310158455,1704384698366,-500.0,0.00034794,2]
[310158456,1704384698379,-500.0,0.00034794,2]
[310158457,1704384698391,-500.0,0.00034794,2]
[310158458,1704384698402,-500.0,0.00034794,2]
[310158459,1704384698411,-500.0,0.00034794,2]
[310158460,1704384698421,-500.0,0.00034794,2]
[310158461,1704384698431,-500.0,0.00034794,2]
[310158462,1704384698441,-566.18,0.00034794,2]
[310158463,1704384698453,-500.0,0.00034794,2]
[310158464,1704384698463,-11794.58,0.00034794,2]
[310158465,1704384698473,-500.0,0.00034794,2]
[310158466,1704384698483,-1416.07,0.00034794,2]
[310158467,1704384698493,-500.0,0.00034794,2]
[310158468,1704384698502,-500.0,0.00034794,2]
[310158469,1704384698512,-1935.18,0.00034794,2]
[310158470,1704384698521,-1254.54,0.00034794,2]
[310158471,1704384698531,-409.80438203,0.00034794,2]
[310158472,1704384698540,-500.0,0.00034794,2]
[310158473,1704384698551,-500.0,0.00034794,2]
[310158474,1704384698561,-500.0,0.00034794,2]
[310158475,1704384698571,-2189.6,0.00034794,2]
[310158476,1704384698580,-500.0,0.00034794,2]
[310158477,1704384698589,-500.0,0.00034794,2]
[310158478,1704384698599,-500.0,0.00034794,2]
[310158479,1704384698610,-1093.1,0.00034794,2]
[310158480,1704384698619,-746.5,0.00034794,2]
[310158481,1704384698629,-500.0,0.00034794,2]
[310158482,1704384698639,-1922.89,0.00034794,2]
[310158483,1704384698649,-500.0,0.00034794,2]
[310158484,1704384698660,-500.0,0.00034794,2]
[310158485,1704384698669,-3029.2,0.00034794,2]
[310158486,1704384698679,-1065.96,0.00034794,2]
[310158487,1704384698689,-500.0,0.00034794,2]
[310158488,1704384698699,-1007.95,0.00034794,2]
[310158489,1704384698709,-11096.0,0.00034794,2]
[310158490,1704384698724,-500.0,0.00034794,2]
[310158491,1704384698733,-747.54,0.00034794,2]
[310158492,1704384698742,-760.32,0.00034794,2]
[310158493,1704384698751,-12156.16,0.00034794,2]
[310158494,1704384698761,-500.0,0.00034794,2]
[310158495,1704384698770,-834.78,0.00034794,2]
[310158496,1704384698779,-1718.28,0.00034794,2]
[310158497,1704384698789,-611.3,0.00034794,2]
[310158498,1704384698798,-697.33,0.00034794,2]
[310158499,1704384698807,-1413.99,0.00034794,2]
[310158500,1704384698817,-697.67,0.00034794,2]
[310158501,1704384698826,-1163.39,0.00034794,2]
[310158502,1704384698836,-1281.58,0.00034794,2]
[310158503,1704384698845,-883.92,0.00034794,2]
[310158504,1704384698855,-520.32,0.00034794,2]
[310158505,1704384698864,-500.0,0.00034794,2]
[310158506,1704384698874,-1053.47,0.00034794,2]
[310158507,1704384698883,-726.31,0.00034794,2]
[310158508,1704384698892,-773.87,0.00034794,2]
[310158509,1704384698902,-3994.67,0.00034794,2]
[310158510,1704384698911,-500.0,0.00034794,2]
[310158511,1704384698921,-891.04,0.00034794,2]
[310158512,1704384698930,-528.67,0.00034794,2]
[310158513,1704384698940,-2976.44,0.00034794,2]
[310158514,1704384698949,-902.18,0.00034794,2]
[310158515,1704384698959,-1129.74,0.00034794,2]
[310158516,1704384698968,-500.0,0.00034794,2]
[310158517,1704384698978,-500.0,0.00034794,2]
[310158518,1704384698987,-8714.16,0.00034794,2]
[310158519,1704384698997,-709.87,0.00034794,2]
[310158520,1704384699007,-573.28,0.00034794,2]
[310158521,1704384699016,-500.0,0.00034794,2]
[310158522,1704384699025,-617.6,0.00034794,2]
[310158523,1704384699035,-539.92,0.00034794,2]
[310158524,1704384699045,-500.0,0.00034794,2]
[310158525,1704384699054,-2375.82,0.00034794,2]
[310158526,1704384699064,-2912.75,0.00034794,2]
[310158527,1704384699074,-500.0,0.00034794,2]
[310158528,1704384699083,-880.41,0.00034794,2]
[310158529,1704384699093,-496.97521267,0.00034794,2]
[310158530,1704384699103,-500.0,0.00034794,2]
[310158531,1704384699113,-990.05,0.00034794,2]
[310158532,1704384699123,-712.84,0.00034794,2]
[310158533,1704384699132,-500.0,0.00034794,2]
[310158534,1704384699142,-500.0,0.00034794,2]
[310158535,1704384699151,-1899.71,0.00034794,2]
[310158536,1704384699161,-704.89,0.00034794,2]
[310158537,1704384699170,-1360.68,0.00034794,2]
[310158538,1704384699180,-1752.91,0.00034794,2]
[310158539,1704384699189,-846.97,0.00034794,2]
[310158540,1704384699199,-17571.57890441,0.00034794,10]
[310158541,1704384699209,-633.06612051,0.00034794,2]
[310158542,1704384699219,-4094.39,0.00034794,2]
[310158543,1704384699228,-500.0,0.00034794,2]
[310158544,1704384699238,-1446.57,0.00034794,2]
[310158545,1704384699248,-561.91,0.00034794,2]
[310158546,1704384699258,-1589.28,0.00034794,2]
[310158547,1704384699268,-500.0,0.00034794,2]
[310158548,1704384699277,-500.0,0.00034794,2]
[310158549,1704384699287,-500.0,0.00034794,2]
[310158550,1704384699297,-834.84,0.00034794,2]
[310158551,1704384699306,-1546.98,0.00034794,2]
[310158552,1704384699316,-1093.14,0.00034794,2]
[310158553,1704384699325,-564.13,0.00034794,2]
[310158554,1704384699335,-1945.09,0.00034794,2]
[310158555,1704384699345,-2073.94,0.00034794,2]
[310158556,1704384699356,-893.8,0.00034794,2]
[310158557,1704384699367,-900.7,0.00034794,2]
[310158558,1704384699376,-12496.39,0.00034794,2]
[310158559,1704384699390,-561.96,0.00034794,2]
[310158560,1704384699401,-514.0,0.00034794,2]
[310158561,1704384699411,-1450.8,0.00034794,2]
[310158562,1704384699420,-500.0,0.00034794,2]
[310158563,1704384699430,-1205.79,0.00034794,2]
[310158564,1704384699439,-500.0,0.00034794,2]
[310158565,1704384699449,-621.58,0.00034794,2]
[310158566,1704384699460,-500.0,0.00034794,2]
[310158567,1704384699470,-881.27,0.00034794,2]
[310158568,1704384699479,-10382.29,0.00034794,2]
[310158569,1704384699489,-3417.84,0.00034794,2]
[310158570,1704384699498,-2270.39,0.00034794,2]
[310158571,1704384699507,-500.0,0.00034794,2]
[310158572,1704384699517,-578.21,0.00034794,2]
[310158573,1704384699526,-987.12,0.00034794,2]
[310158574,1704384699535,-552.04,0.00034794,2]
[310158575,1704384699545,-656.43,0.00034794,2]
[310158576,1704384699555,-1396.67,0.00034794,2]
[310158577,1704384699565,-940.22,0.00034794,2]
[310158578,1704384699574,-500.0,0.00034794,2]
[310158579,1704384699583,-1079.52,0.00034794,2]
[310158580,1704384699593,-1439.1,0.00034794,2]
[310158581,1704384699602,-500.0,0.00034794,2]
[310158582,1704384699612,-500.0,0.00034794,2]
[310158583,1704384699622,-1088.28,0.00034794,2]
[310158584,1704384699632,-5839.49,0.00034794,2]
[310158585,1704384699810,-500.0,0.00034794,2]
[310158586,1704384699820,-1535.77,0.00034794,2]
[310158587,1704384699830,-1904.93,0.00034794,2]
[310158588,1704384699839,-500.0,0.00034794,2]
[310158589,1704384699849,-1236.96,0.00034794,2]
[310158590,1704384699860,-500.0,0.00034794,2]
[310158591,1704384699869,-500.0,0.00034794,2]
[310158592,1704384699879,-3487.16,0.00034794,2]
[310158593,1704384699889,-4880.8,0.00034794,2]
[310158594,1704384699899,-745.3,0.00034794,2]
[310158595,1704384699909,-568.13,0.00034794,2]
[310158596,1704384699919,-2004.58,0.00034794,2]
[310158597,1704384699929,-809.18,0.00034794,2]
[310158598,1704384699938,-8885.11,0.00034794,2]
[310158599,1704384699948,-1186.38,0.00034794,2]
[310158600,1704384699958,-500.0,0.00034794,2]
[310158601,1704384699967,-500.0,0.00034794,2]
[310158602,1704384699977,-1779.45,0.00034794,2]
[310158603,1704384699986,-1353.33,0.00034794,2]
[310158604,1704384699996,-1121.93,0.00034794,2]
[310158605,1704384700006,-500.0,0.00034794,2]
[310158606,1704384700016,-471.7,0.0003489,2]
[310158607,1704384700025,-216.0,0.000349,24]
[310158608,1704384700035,-185.9774399,0.000349,2]
[310158609,1704384700045,-185.9774399,0.000349,2]
[310158610,1704384700055,-185.9774399,0.000349,2]
[310158611,1704384700065,-185.9774399,0.000349,2]
[310158612,1704384700074,-10814.77914658,0.000349,2]
[310158613,1704384700084,-10814.77914652,0.000349,2]
[310158614,1704384700094,-10814.77914652,0.000349,2]
[310158615,1704384700104,-1100.63405105,0.00034904,3]
[310158616,1704384700113,-575.28,0.0003493,2]
[310158617,1704384700123,-5831.535116,0.00034931,2]
[310158618,1704384700132,-8164.149163,0.00034931,2]
[310158619,1704384700142,-211.0,0.00034987,10]
[310158620,1704384700152,-1490.0,0.0003499,8]
[310158621,1704384700162,-307.0,0.0003499,3]
[310158622,1704384700172,-16395.51223475,0.00035,2]
[310158623,1704384700182,-15685.4782942,0.00035,7]
[310158624,1704384700191,-287.6531724,0.00035,2]
[310158625,1704384700201,-446.78845482,0.00035,4]
[310158626,1704384700211,-155.0,0.00035,4]
[310158627,1704384700220,-882.72205867,0.00035,4]
[310158628,1704384700230,-3000.0,0.00035,20]
[310158629,1704384700239,-2500.0,0.00035,2]
[310158630,1704384700249,-150.0,0.00035,7]
[310158631,1704384700259,-160.75741217,0.00035,4]
[310158632,1704384700269,-51199.1914495,0.00035,2]
[310158633,1704384700278,-150.0,0.00035,2]
[310158634,1704384700288,-20000.0,0.00035,2]
[310158635,1704384700298,-1255.60670788,0.00035,4]
[310158636,1704384700307,-7911.76850119,0.00035,2]
[310158637,1704384700317,-85855.50499154,0.00035,4]
[310158638,1704384700326,-991.80629317,0.00035,2]
[310158639,1704384700336,-4620.24817165,0.00035,2]
[310158640,1704384700346,-5800.0,0.00035051,2]
[310158641,1704384700356,-5800.0,0.0003506,2]
[310158642,1704384700366,-1667.8,0.00035067,2]
[310158643,1704384700375,-1667.8,0.00035067,2]
[310158644,1704384700387,-575.28,0.00035067,2]
[310158645,1704384700397,-575.28,0.00035067,2]
[310158646,1704384700406,-991.80629317,0.00035068,2]
[310158647,1704384700415,-7289.418896,0.00035068,2]
[310158648,1704384700425,-10205.186454,0.00035068,2]
[310158649,1704384700434,-500.0,0.00035068,2]
[310158650,1704384700444,-500.0,0.00035068,2]
[310158651,1704384700455,-500.0,0.00035068,2]
[310158652,1704384700465,-589.83,0.00035068,2]
[310158653,1704384700475,-768.69,0.00035068,2]
[310158654,1704384700484,-603.66,0.00035068,2]
[310158655,1704384700494,-599.73,0.00035068,2]
[310158656,1704384700503,-609.87,0.00035068,2]
[310158657,1704384700512,-500.0,0.00035068,2]
[310158658,1704384700521,-500.0,0.00035068,2]
[310158659,1704384700531,-500.0,0.00035068,2]
[310158660,1704384700540,-515.28,0.00035068,2]
[310158661,1704384700550,-607.88,0.00035068,2]
[310158662,1704384700559,-338.16,0.00035068,2]
[310158663,1704384700568,-500.0,0.00035068,2]
[310158664,1704384700577,-500.0,0.00035068,2]
[310158665,1704384700586,-911.18,0.00035068,2]
[310158666,1704384700595,-295.8,0.00035068,2]
[310158667,1704384700606,-500.0,0.00035068,2]
[310158668,1704384700615,-500.0,0.00035068,2]
[310158669,1704384700624,-231.7779089,0.00035068,2]
[310158670,1704384700633,-500.0,0.00035068,2]
[310158671,1704384700642,-718.24,0.00035068,2]
[310158672,1704384700652,-690.39,0.00035068,2]
[310158673,1704384700661,-500.0,0.00035068,2]
[310158674,1704384700671,-712.49,0.00035068,2]
[310158675,1704384700680,-500.0,0.00035068,2]
[310158676,1704384700689,-500.0,0.00035068,2]
[310158677,1704384700698,-500.0,0.00035068,2]
[310158678,1704384700708,-326.25083241,0.00035068,3]
[310158679,1704384700718,-582.68,0.00035068,2]
[310158680,1704384700727,-500.0,0.00035068,2]
[310158681,1704384700737,-500.0,0.00035068,2]
[310158682,1704384700746,-1117.06,0.00035068,2]
[310158683,1704384700756,-500.0,0.00035068,2]
[310158684,1704384700766,-500.0,0.00035068,2]
[310158685,1704384700775,-500.0,0.00035068,2]
[310158686,1704384700785,-585.66,0.00035068,2]
[310158687,1704384700794,-559.75867061,0.00035068,2]
[310158688,1704384700803,-500.0,0.00035068,2]
[310158689,1704384700813,-789.66,0.00035068,2]
[310158690,1704384700822,-500.0,0.00035068,2]
[310158691,1704384700831,-598.52,0.00035068,2]
[310158692,1704384700841,-500.0,0.00035068,2]
[310158693,1704384700850,-500.0,0.00035068,2]
[310158694,1704384700864,-500.0,0.00035068,2]
[310158695,1704384700875,-500.0,0.00035068,2]
[310158696,1704384700885,-500.0,0.00035068,2]
[310158697,1704384700894,-500.0,0.00035068,2]
[310158698,1704384700904,-500.0,0.00035068,2]
[310158699,1704384700914,-500.0,0.00035068,2]
[310158700,1704384700923,-500.0,0.00035068,2]
[310158701,1704384700932,-500.0,0.00035068,2]
[310158702,1704384700942,-500.0,0.00035068,2]
[310158703,1704384700951,-867.28,0.00035068,2]
[310158704,1704384700961,-764.44,0.00035068,2]
[310158705,1704384700970,-883.27,0.00035068,2]
[310158706,1704384700980,-500.0,0.00035068,2]
[310158707,1704384700989,-500.0,0.00035068,2]
[310158708,1704384700999,-500.0,0.00035068,2]
[310158709,1704384701008,-842.43,0.00035068,2]
[310158710,1704384701017,-682.97,0.00035068,2]
[310158711,1704384701027,-500.0,0.00035068,2]
[310158712,1704384701036,-228.46999286,0.00035068,2]
[310158713,1704384701046,-500.0,0.00035068,2]
[310158714,1704384701055,-500.0,0.00035068,2]
[310158715,1704384701065,-670.92,0.00035068,2]
[310158716,1704384701075,-500.0,0.00035068,2]
[310158717,1704384701090,-500.0,0.00035068,2]
[310158718,1704384701112,-500.0,0.00035068,2]
[310158719,1704384701129,-1005.13,0.00035068,2]
[310158720,1704384701150,-1406.92,0.00035068,2]
[310158721,1704384701167,-725.93,0.00035068,2]
[310158722,1704384701185,-699.62,0.00035068,2]